bitfinex-derivatives/quotes_SOLF0:USTF0_20251002
["timestamp","ask_amount","ask_price","bid_price","bid_amount"]
[1759430683767,3.11023617,231.87,231.79,10.9106]
[1759430683972,3.11023617,231.87,231.79,7.03]
[1759430684171,3.11023617,231.86,231.79,7.03]
[1759430684372,3.11023617,231.87,231.79,7.03]
[1759430684572,3.11023617,231.86,231.79,7.03]
[1759430684773,3.11023617,231.86,231.77,3.8811]
[1759430684774,7.34,231.86,231.77,3.8811]
[1759430684974,10.45023617,231.86,231.77,3.8811]
[1759430685169,7.34,231.86,231.77,3.8811]
[1759430685573,10.45066503,231.86,231.77,3.8811]
[1759430685775,3.11072324,231.85,231.77,3.8811]
[1759430685972,7.34,231.85,231.77,3.8811]
[1759430686471,10.45080801,231.85,231.78,3.8807]
[1759430686677,7.34,231.85,231.78,3.8807]
[1759430687077,10.45100811,231.85,231.78,3.8807]
[1759430687274,7.34,231.85,231.78,3.8807]
[1759430687870,7.34,231.85,231.75,10.9112]
[1759430688069,3.11222978,231.84,231.75,7.03]
[1759430688274,3.11392639,231.83,231.75,7.03]
[1759430688471,7.34,231.83,231.76,3.8811]
[1759430688770,7.34,231.81,231.71,7.03]
[1759430688971,3.11444524,231.8,231.71,7.03]
[1759430689176,7.34,231.78,231.71,10.9119]
[1759430690680,3.12046333,231.77,231.71,10.9119]
[1759430690978,7.34,231.78,231.71,7.03]
[1759430691381,3.1217317,231.77,231.71,7.03]
[1759430691680,7.34,231.78,231.71,7.03]
[1759430691876,3.12173365,231.77,231.71,7.03]
[1759430692079,7.34,231.78,231.71,7.03]
[1759430692280,3.12173496,231.77,231.71,7.03]
[1759430692582,7.34,231.78,231.71,7.03]
[1759430692781,3.12312858,231.77,231.71,7.03]
[1759430692979,7.34,231.78,231.71,7.03]
[1759430693181,3.12312923,231.77,231.71,7.03]
[1759430693381,3.12467421,231.76,231.69,3.8823]
[1759430693581,10.46479929,231.75,231.67,10.9127]
[1759430693877,3.12495374,231.74,231.6,7.03]
[1759430694082,11.2214,231.75,231.64,3.8832]
[1759430694083,7.34,231.75,231.64,3.8832]
[1759430694283,3.12499914,231.74,231.64,10.9132]
[1759430694482,3.12499914,231.73,231.64,10.9132]
[1759430694684,7.34,231.75,231.64,10.9132]
[1759430694981,3.12674487,231.74,231.64,10.9132]
[1759430695173,3.12674487,231.73,231.64,10.9132]
[1759430695377,3.12674487,231.72,231.64,10.9132]
[1759430695576,3.8817,231.73,231.64,10.9132]
[1759430695773,3.12861842,231.72,231.65,3.8829]
[1759430695978,7.34,231.75,231.64,7.03]
[1759430696179,3.12849382,231.74,231.64,7.03]
[1759430696380,3.12849382,231.73,231.64,7.03]
[1759430696580,7.34,231.75,231.64,7.03]
[1759430696782,3.13016356,231.74,231.64,7.03]
[1759430697081,3.13016356,231.73,231.64,7.03]
[1759430697279,3.13199372,231.72,231.64,7.03]
[1759430697474,7.34,231.75,231.64,7.03]
[1759430697680,7.34,231.75,231.67,3.8827]
[1759430697681,3.13199241,231.74,231.67,3.8827]
[1759430697877,3.13199241,231.73,231.67,3.8827]
[1759430698176,7.34,231.76,231.67,3.8827]
[1759430698374,3.13268557,231.75,231.67,3.8827]
[1759430698679,7.34,231.73,231.65,3.8831]
[1759430698878,3.13268557,231.72,231.65,3.8831]
[1759430699084,7.34,231.73,231.65,3.8831]
[1759430699378,3.13276875,231.72,231.64,7.03]
[1759430699583,11.2218,231.73,231.64,7.03]
[1759430699784,3.13298506,231.72,231.64,7.03]
[1759430700083,11.2218,231.73,231.64,7.03]
[1759430700283,3.13294347,231.72,231.64,7.03]
[1759430700586,11.2218,231.73,231.64,7.03]
[1759430700777,3.13333343,231.72,231.64,7.03]
[1759430700973,11.2218,231.73,231.64,7.03]
[1759430701282,7.0151209,231.72,231.64,7.03]
[1759430701485,3.1331209,231.71,231.64,7.03]
[1759430701682,3.882,231.72,231.64,7.03]
[1759430701887,3.8823,231.7,231.64,7.03]
[1759430704884,11.4123,231.7,231.62,1.77449355]
[1759430705184,3.8825,231.69,231.6,7.55]
[1759430705383,7.53,231.65,231.55,1.77449355]
[1759430705582,1.77449355,231.66,231.55,1.77449355]
[1759430705583,7.53,231.63,231.55,1.77449355]
[1759430705885,3.1320035,231.62,231.55,1.77449355]
[1759430706085,3.13205534,231.61,231.55,1.77449355]
[1759430706288,7.53,231.63,231.55,1.77449355]
[1759430706587,3.12936317,231.62,231.55,1.77449355]
[1759430706776,3.12947031,231.61,231.55,1.77449355]
[1759430706977,11.4136,231.63,231.55,1.77449355]
[1759430706978,3.12938782,231.62,231.55,1.77449355]
[1759430707183,11.4136,231.63,231.54,3.8848]
[1759430707490,3.12760384,231.62,231.54,3.8848]
[1759430707789,11.4136,231.63,231.54,3.8848]
[1759430707988,3.8838,231.61,231.53,9.32449355]
[1759430708182,7.53,231.6,231.53,9.32449355]
[1759430709891,1.77449355,231.63,231.49,3.70198619]
[1759430709892,7.53,231.58,231.49,7.55]
[1759430712292,7.53,231.58,231.52,7.55]
[1759430712885,1.77449355,231.61,231.52,11.4352]
[1759430713191,20.51942741,231.63,231.56,1.77449355]
[1759430713492,7.53,231.63,231.56,1.77449355]
[1759430714694,20.78321486,231.63,231.55,7.55]
[1759430714895,7.53,231.63,231.55,7.55]
[1759430717197,7.53,231.63,231.55,11.4347]
[1759430717891,20.52051171,231.63,231.57,5.65889355]
[1759430718090,12.99051171,231.63,231.61,7.55]
[1759430718290,7.53,231.68,231.61,7.55]
[1759430718693,7.53,231.68,231.63,1.77449355]
[1759430718897,314.08,231.71,231.64,7.55]
[1759430719397,327.29115052,231.71,231.66,1.77449355]
[1759430719597,13.21115052,231.71,231.66,1.77449355]
[1759430719899,2.63972735,231.74,231.66,1.77449355]
[1759430722398,15.34723217,231.74,231.66,1.77449355]
[1759430723994,15.34723217,231.74,231.65,11.433]
[1759430724197,15.34723217,231.74,231.67,1.77449355]
[1759430724498,7.67,231.73,231.65,9.32449355]
[1759430728397,7.67,231.73,231.65,7.55]
[1759430730003,11.5518,231.73,231.65,7.55]
[1759430731195,11.5518,231.73,231.64,3.8832]
[1759430731400,3.11968522,231.72,231.62,6.65534376]
[1759430731601,7.64,231.71,231.62,6.65534376]
[1759430732696,7.64,231.71,231.64,11.1132]
[1759430732895,10.7610091,231.71,231.64,11.1132]
[1759430733200,7.64,231.71,231.64,11.1132]
[1759430733797,10.76227081,231.71,231.64,11.1132]
[1759430733996,7.64,231.71,231.64,11.1132]
[1759430734899,7.64,231.71,231.67,7.23]
[1759430735299,7.64,231.73,231.63,7.23]
[1759430735503,7.64,231.71,231.59,7.23]
[1759430735697,3.12382716,231.72,231.59,7.23]
[1759430735698,7.64,231.69,231.6,3.8838]
[1759430736004,10.76389704,231.69,231.6,3.8838]
[1759430736302,7.64,231.69,231.6,3.8838]
[1759430736903,7.64,231.69,231.61,3.8836]
[1759430742007,7.64,231.69,231.62,3.8834]
[1759430744009,7.64,231.69,231.58,2.77174376]
[1759430744010,7.64,231.69,231.65,7.23]
[1759430744204,7.64,231.69,231.58,2.77174376]
[1759430744205,7.64,231.69,231.61,7.23]
[1759430744406,3.12869643,231.68,231.52,2.77174376]
[1759430744610,59.56869643,231.67,231.54,7.23]
[1759430744806,7.64,231.65,231.54,7.23]
[1759430745007,3.12869643,231.64,231.54,7.23]
[1759430745213,7.64,231.65,231.54,7.23]
[1759430745413,3.12925866,231.64,231.54,7.23]
[1759430745610,7.64,231.65,231.54,7.23]
[1759430745812,7.64,231.63,231.54,7.23]
[1759430746006,3.12928199,231.62,231.54,7.23]
[1759430746204,3.12928199,231.61,231.54,7.23]
[1759430746414,7.64,231.63,231.54,7.23]
[1759430746610,3.12968886,231.62,231.54,11.1148]
[1759430746811,3.12968886,231.61,231.54,11.1148]
[1759430747011,3.12959027,231.62,231.54,7.23]
[1759430747313,7.64,231.63,231.54,7.23]
[1759430747708,7.64,231.63,231.6,3.8839]
[1759430749212,7.64,231.63,231.57,7.23]
[1759430749813,7.64,231.61,231.57,7.23]
[1759430750515,7.64,231.63,231.54,3.8849]
[1759430750719,3.12976483,231.62,231.54,3.8849]
[1759430750921,7.64,231.63,231.54,3.8849]
[1759430751120,3.12989328,231.62,231.54,3.8849]
[1759430751316,7.64,231.63,231.54,3.8849]
[1759430751516,3.129933,231.62,231.54,3.8849]
[1759430751717,7.64,231.63,231.54,3.8849]
[1759430752017,3.12990297,231.62,231.55,11.1146]
[1759430752218,3.8829,231.66,231.55,7.23]
[1759430752518,3.12987844,231.65,231.55,7.23]
[1759430752713,3.12987844,231.64,231.55,7.23]
[1759430752917,3.12987844,231.63,231.55,7.23]
[1759430753217,115.0,231.67,231.55,7.23]
[1759430753218,11.5232,231.65,231.56,3.8845]
[1759430753417,3.12993822,231.64,231.56,3.8845]
[1759430753618,3.12993822,231.63,231.56,3.8845]
[1759430753817,11.5232,231.65,231.56,3.8845]
[1759430754012,3.12993825,231.64,231.56,3.8845]
[1759430754210,3.12993825,231.63,231.56,3.8845]
[1759430754510,11.5232,231.65,231.56,3.8845]
[1759430754716,3.13016377,231.64,231.56,3.8845]
[1759430755018,7.64,231.65,231.56,3.8845]
[1759430755223,3.13003652,231.64,231.56,3.8845]
[1759430755412,7.64,231.65,231.56,3.8845]
[1759430755618,3.13090437,231.64,231.56,3.8845]
[1759430755812,7.64,231.65,231.56,3.8845]
[1759430756018,3.13090437,231.64,231.56,3.8845]
[1759430756222,7.64,231.65,231.56,3.8845]
[1759430756223,3.13183086,231.63,231.56,3.8845]
[1759430756522,7.64,231.65,231.56,3.8845]
[1759430756723,3.13183086,231.64,231.56,3.8845]
[1759430757020,3.13183086,231.63,231.57,3.8843]
[1759430757217,7.64,231.65,231.55,7.23]
[1759430757419,3.13277991,231.64,231.58,60.4217]
[1759430757622,3.13238443,231.7,231.65,11.1129]
[1759430757922,3.13238443,231.69,231.65,11.1129]
[1759430758124,7.64,231.7,231.65,11.1129]
[1759430758322,30.30723217,231.74,231.62,60.4111]
[1759430758522,30.30723217,231.74,231.65,7.23]
[1759430758523,3.13244902,231.73,231.65,7.23]
[1759430758723,12.70750482,231.74,231.65,7.23]
[1759430758922,3.13204019,231.73,231.65,7.23]
[1759430759126,7.64,231.75,231.65,7.23]
[1759430759426,3.13197825,231.74,231.65,7.23]
[1759430759620,3.13197825,231.73,231.69,3.8823]
[1759430759823,7.64,231.75,231.7,7.23]
[1759430760028,3.13201991,231.74,231.67,7.23]
[1759430760326,3.13201991,231.73,231.72,7.23]
[1759430760524,7.64,231.79,231.72,7.23]
[1759430760720,3.13225163,231.78,231.72,7.23]
[1759430760926,7.64,231.79,231.68,63.16674376]
[1759430760927,3.13225163,231.77,231.69,7.23]
[1759430761126,3.13225163,231.76,231.69,7.23]
[1759430761326,7.64,231.79,231.69,7.23]
[1759430761625,3.13175156,231.78,231.74,7.21]
[1759430761831,3.13175156,231.77,231.74,7.21]
[1759430762031,3.13175156,231.76,231.68,7.21]
[1759430762231,7.44,231.77,231.71,3.8819]
[1759430762232,3.13159348,231.75,231.71,3.8819]
[1759430762429,7.44,231.77,231.71,3.8819]
[1759430762628,3.13151085,231.76,231.72,7.21]
[1759430762835,7.44,231.77,231.72,7.21]
[1759430763034,3.13150952,231.76,231.72,7.21]
[1759430763232,7.44,231.77,231.72,7.21]
[1759430763431,3.13099805,231.76,231.72,7.21]
[1759430763633,7.44,231.77,231.73,3.8817]
[1759430763933,3.13108133,231.76,231.73,3.8817]
[1759430764134,7.44,231.77,231.73,3.8817]
[1759430764328,3.13033146,231.76,231.74,3.8814]
[1759430764537,20.27058771,231.79,231.74,11.0914]
[1759430764737,3.13014965,231.78,231.74,11.0914]
[1759430764937,3.13014965,231.77,231.74,11.0914]
[1759430765133,20.27058771,231.79,231.74,11.0914]
[1759430765334,10.56937021,231.78,231.74,11.0914]
[1759430765638,7.44,231.78,231.74,11.0914]
[1759430765838,7.44,231.82,231.74,11.0914]
[1759430766139,3.12940984,231.81,231.74,11.0914]
[1759430766341,3.12940984,231.8,231.74,11.0914]
[1759430766540,10.56940984,231.79,231.74,11.0914]
[1759430766740,3.12940984,231.78,231.74,11.0914]
[1759430766937,7.44,231.79,231.74,11.0914]
[1759430767139,3.12865532,231.78,231.71,3.8819]
[1759430767440,7.44,231.77,231.71,3.8819]
[1759430767634,7.44,231.77,231.73,3.8817]
[1759430767830,7.44,231.77,231.73,11.0917]
[1759430768833,7.44,231.81,231.73,3.8817]
[1759430769037,3.12734012,231.8,231.72,7.21]
[1759430769240,12.80343695,231.83,231.73,7.21]
[1759430769440,3.1264433,231.82,231.76,60.3751]
[1759430769636,3.12625514,231.84,231.77,63.14434376]
[1759430769836,3.12579731,231.88,231.79,60.3669]
[1759430770037,3.12579731,231.87,231.84,3.8798]
[1759430770239,20.25694079,231.89,231.85,7.21]
[1759430770240,3.12579731,231.88,231.85,7.21]
[1759430770439,3.12328091,231.88,231.85,7.21]
[1759430770640,20.25694079,231.89,231.78,7.21]
[1759430770842,3.12347387,231.88,231.78,7.21]
[1759430771039,3.12347387,231.87,231.78,7.21]
[1759430771240,3.12347387,231.88,231.78,7.21]
[1759430771441,3.12347387,231.87,231.81,3.8802]
[1759430771745,20.25694079,231.89,231.81,3.8802]
[1759430771746,3.12347387,231.88,231.81,3.8802]
[1759430772043,3.12347387,231.88,231.78,7.21]
[1759430772044,3.12347387,231.87,231.83,3.88]
[1759430772247,10.56347387,231.88,231.83,11.09]
[1759430773335,10.56347387,231.88,231.85,3.8796]
[1759430773543,12.81694079,231.89,231.85,3.8796]
[1759430773743,114.78,231.92,231.85,3.8796]
[1759430774043,3.11825833,231.91,231.85,3.8796]
[1759430775144,3.11825833,231.91,231.82,7.21]
[1759430775345,16.11635435,231.91,231.82,7.21]
[1759430775645,12.99809602,231.91,231.82,7.21]
[1759430775847,114.78,231.92,231.85,3.8797]
[1759430776046,3.11506965,231.91,231.85,3.8797]
[1759430776743,3.11506965,231.91,231.87,3.8794]
[1759430776948,10.55506965,231.91,231.87,3.8794]
[1759430777141,7.44,231.9,231.87,3.8794]
[1759430777749,7.44,231.9,231.84,11.0898]
[1759430780552,7.44,231.9,231.81,3.8803]
[1759430780953,10.21174376,231.9,231.81,3.8803]
[1759430782751,7.44,231.9,231.81,3.8803]
[1759430784852,7.28,231.96,231.84,7.3]
[1759430785646,10.38543696,231.96,231.84,7.3]
[1759430785945,23.2295249,231.96,231.89,3.8789]
[1759430786256,20.12408794,231.96,231.88,7.3]
[1759430787553,20.12408794,231.96,231.91,3.8786]
[1759430788252,20.12408794,231.96,231.91,11.1786]
[1759430788454,7.28,231.95,231.91,3.8786]
[1759430788654,20.12408794,231.96,231.89,3.879]
[1759430790250,21.89482549,231.96,231.89,3.879]
[1759430791754,20.12408794,231.96,231.9,3.8788]
[1759430792549,1.77073755,231.95,231.87,3.8793]
[1759430792754,7.71,231.94,231.86,1.77073755]
[1759430793356,7.71,231.94,231.88,1.77073755]
[1759430794555,12.84408794,231.96,231.9,3.8788]
[1759430794754,106.96,231.98,231.9,7.56]
[1759430794958,120.07175411,231.98,231.91,1.77073755]
[1759430795350,7.71,231.99,231.94,1.77073755]
[1759430795555,7.71,232.03,231.94,9.33073755]
[1759430795756,3.10244556,232.02,231.94,9.33073755]
[1759430795959,3.10244556,232.02,231.94,3.878]
[1759430796159,3.10244556,232.01,231.92,1.77073755]
[1759430797156,3.10244556,232.0,231.92,1.77073755]
[1759430797355,3.10244556,232.01,231.94,3.8781]
[1759430797555,3.10244556,232.0,231.93,7.56]
[1759430797760,3.10244556,232.01,231.93,7.56]
[1759430797957,3.10244556,232.01,231.95,1.77073755]
[1759430798160,3.10244556,232.05,231.98,9.33073755]
[1759430798461,3.10244556,232.04,231.98,9.33073755]
[1759430798660,3.10244556,232.03,231.99,11.4372]
[1759430798956,3.10244556,232.07,231.99,11.4372]
[1759430799159,3.10244556,232.06,231.99,7.56]
[1759430799364,3.10244556,232.05,231.99,7.56]
[1759430799561,10.81244556,232.04,231.99,7.56]
[1759430799762,3.10244556,232.03,231.99,7.56]
[1759430799963,3.10579673,232.02,231.99,7.56]
[1759430800159,7.71,232.04,231.99,7.56]
[1759430800360,7.71,232.02,231.96,5.64863755]
[1759430800663,3.10694435,232.01,231.97,7.56]
[1759430800855,7.71,232.04,231.97,7.56]
[1759430801059,7.71,232.02,231.99,3.8774]
[1759430801272,7.71,232.07,231.99,5.64813755]
[1759430801460,3.10807894,232.06,231.99,1.77073755]
[1759430801661,3.10807894,232.05,231.97,7.56]
[1759430801866,7.71,232.07,231.98,1.77073755]
[1759430801867,3.10807894,232.04,231.98,1.77073755]
[1759430802064,3.10807894,232.03,231.99,7.56]
[1759430802363,3.10807894,232.02,231.98,9.33073755]
[1759430802565,3.10807894,232.01,231.98,9.33073755]
[1759430802761,7.71,232.05,231.98,1.77073755]
[1759430802961,3.1101612,232.04,231.98,1.77073755]
[1759430803162,3.1101612,232.03,231.98,9.33073755]
[1759430803369,3.1101612,232.02,231.99,7.56]
[1759430803561,3.1101612,232.01,231.99,7.56]
[1759430803761,7.71,232.05,231.99,7.56]
[1759430803966,10.82095195,232.04,231.99,7.56]
[1759430804165,3.11095195,232.03,231.99,7.56]
[1759430804465,3.11095195,232.02,231.99,7.56]
[1759430804766,7.71,232.07,231.97,3.8777]
[1759430805065,14.79159483,232.08,231.98,1.77073755]
[1759430805066,7.71,232.05,231.98,1.77073755]
[1759430805365,3.11107112,232.04,231.98,1.77073755]
[1759430805564,10.82107112,232.03,231.98,9.33073755]
[1759430805765,3.11107112,232.02,231.98,9.33073755]
[1759430806066,7.71,232.03,231.98,9.33073755]
[1759430806365,3.11049593,232.02,231.98,9.33073755]
[1759430806566,7.71,232.03,231.98,9.33073755]
[1759430806765,3.11049593,232.02,231.98,9.33073755]
[1759430806966,7.71,232.03,231.98,9.33073755]
[1759430807166,13.02085728,232.08,232.0,7.56]
[1759430807359,10.8205054,232.07,232.0,9.33073755]
[1759430807561,3.1105054,232.06,232.0,9.33073755]
[1759430807867,1.77073755,232.09,232.0,9.33073755]
[1759430807868,7.71,232.04,232.0,9.33073755]
[1759430808069,10.8205054,232.03,232.0,1.77073755]
[1759430808268,7.71,232.03,232.0,1.77073755]
[1759430808469,7.71,232.03,231.98,3.8774]
[1759430808769,7.71,232.03,231.98,13.20813755]
[1759430809064,10.82093703,232.02,231.98,7.56]
[1759430809269,7.71,232.02,231.98,7.56]
[1759430811471,1.77073755,232.07,231.99,9.33073755]
[1759430811472,7.71,232.06,231.99,9.33073755]
[1759430811769,3.11266923,232.05,231.99,9.33073755]
[1759430812069,3.11266923,232.04,232.0,7.56]
[1759430812371,3.11266923,232.03,232.0,7.56]
[1759430812565,7.71,232.06,231.99,1.77073755]
[1759430812767,3.11326797,232.05,231.99,1.77073755]
[1759430812968,7.71,232.03,231.99,9.33073755]
[1759430813572,3.8761,232.07,231.99,1.77073755]
[1759430813872,10.82448996,232.06,231.97,3.8777]
[1759430814169,3.11448996,232.05,231.97,3.8777]
[1759430814373,3.11448996,232.04,231.97,3.8777]
[1759430814575,3.11448996,232.03,231.97,3.8777]
[1759430814776,7.71,232.06,231.97,3.8777]
[1759430814977,3.11581452,232.05,231.97,3.8777]
[1759430815172,3.11581452,232.04,231.97,3.8777]
[1759430815375,3.11581452,232.03,231.96,1.77073755]
[1759430815569,7.71,232.04,231.96,1.77073755]
[1759430815772,3.11584903,232.03,231.96,1.77073755]
[1759430815972,7.71,232.04,231.96,1.77073755]
[1759430816570,7.71,232.04,231.98,1.77073755]
[1759430817970,7.71,232.04,231.97,3.8776]
[1759430818375,7.71,232.04,231.99,3.8773]
[1759430818678,7.71,232.04,231.99,11.4373]
[1759430819883,7.71,232.06,231.99,3.8773]
[1759430820182,3.11724664,232.05,231.98,1.77073755]
[1759430820480,7.71,232.06,231.98,1.77073755]
[1759430820877,3.11759149,232.05,231.98,1.77073755]
[1759430821073,7.71,232.06,231.98,5.64813755]
[1759430821276,3.11815867,232.05,231.98,5.64813755]
[1759430821482,7.71,232.06,231.98,5.64813755]
[1759430821683,3.11808332,232.05,231.98,5.64813755]
[1759430821877,7.71,232.06,231.98,5.64813755]
[1759430822182,1.77073755,232.07,231.98,5.64813755]
[1759430822183,3.11808332,232.05,231.98,1.77073755]
[1759430822481,10.26880124,232.04,231.96,13.20863755]
[1759430822683,10.26880124,232.03,231.96,11.4379]
[1759430822884,7.15,232.03,231.96,11.4379]
[1759430823079,1.77073755,232.06,231.97,5.64833755]
[1759430823284,3.11916366,232.05,231.98,7.16]
[1759430823484,10.26916366,232.04,231.98,7.16]
[1759430823687,7.15,232.04,231.98,7.16]
[1759430827993,8.92073755,232.04,231.95,1.77073755]
[1759430828194,7.15,232.02,231.95,1.77073755]
[1759430828692,7.15,232.02,231.93,7.16]
[1759430828994,3.12470862,232.01,231.93,7.16]
[1759430829197,7.15,232.0,231.94,1.77073755]
[1759430829491,1.77073755,231.99,231.9,1.77073755]
[1759430829690,1.77073755,231.99,231.83,60.356]
[1759430829691,7.15,231.96,231.88,1.77073755]
[1759430830288,7.15,231.96,231.9,3.8788]
[1759430831693,7.15,231.96,231.89,7.16]
[1759430832900,7.15,231.96,231.91,3.8786]
[1759430833095,7.15,231.98,231.91,11.0386]
[1759430833297,7.15,231.96,231.89,3.8789]
[1759430833699,7.15,232.01,231.93,1.77073755]
[1759430833991,8.92073755,232.05,231.97,7.16]
[1759430834196,3.12834381,232.04,231.97,7.16]
[1759430834394,3.12834381,232.03,231.97,7.16]
[1759430834599,10.27834381,232.02,231.97,7.16]
[1759430834795,3.12834381,232.01,231.97,7.16]
[1759430835002,11.0267,232.04,231.96,1.77073755]
[1759430835201,7.15,232.02,231.96,1.77073755]
[1759430835402,10.27924937,232.01,231.96,8.93073755]
[1759430835704,7.15,232.01,231.96,8.93073755]
[1759430836499,7.15,232.01,231.97,7.16]
[1759430836705,8.92073755,232.05,231.96,12.80853755]
[1759430836901,3.13090856,232.04,231.96,12.80853755]
[1759430837095,3.13090856,232.03,231.96,12.80853755]
[1759430837297,3.13090856,232.02,231.96,12.80853755]
[1759430837494,10.28090856,232.01,231.96,12.80853755]
[1759430837705,7.15,232.01,231.97,7.16]
[1759430837898,106.84,232.07,231.97,7.16]
[1759430838102,106.84,232.07,231.98,1.77073755]
[1759430838103,10.28172735,232.06,231.98,1.77073755]
[1759430838303,3.13172735,232.05,231.98,1.77073755]
[1759430838506,3.13172735,232.04,231.98,1.77073755]
[1759430838802,3.13172735,232.03,231.98,5.64813755]
[1759430839004,10.28172735,232.02,231.98,5.64813755]
[1759430839195,3.13172735,232.01,231.98,12.80813755]
[1759430839394,7.15,232.02,231.98,5.64813755]
[1759430839599,7.15,232.0,231.96,1.77073755]
[1759430839795,7.15,232.04,231.97,7.16]
[1759430840102,3.13424085,232.03,231.97,7.16]
[1759430840402,3.13424085,232.02,231.96,1.77073755]
[1759430840706,7.15,232.0,231.94,1.77073755]
[1759430840905,3.13525277,231.99,231.95,7.16]
[1759430841097,7.15,231.99,231.95,7.16]
[1759430841902,7.15,232.04,231.96,1.77073755]
[1759430842106,3.13581991,232.03,231.99,7.16]
[1759430842309,3.13581991,232.02,231.99,7.16]
[1759430842506,3.13581991,232.01,231.99,7.16]
[1759430842704,7.15,232.06,231.99,7.16]
[1759430842905,3.13616779,232.05,231.99,7.16]
[1759430843207,7.15,232.03,231.99,7.16]
[1759430843404,3.13616779,232.02,231.99,7.16]
[1759430843708,3.13616779,232.01,231.99,7.16]
[1759430843904,7.15,232.03,231.99,7.16]
[1759430844204,3.13616565,232.02,231.99,7.16]
[1759430844406,3.13616565,232.01,231.99,7.16]
[1759430844606,7.15,232.03,231.99,7.16]
[1759430844902,3.13615572,232.02,231.99,7.16]
[1759430845110,3.13615572,232.01,232.0,7.73]
[1759430845607,3.13615572,232.01,231.99,3.8772]
[1759430845906,7.09,232.06,231.99,3.8772]
[1759430846108,3.1361365,232.05,231.99,3.8772]
[1759430846306,7.09,232.03,231.99,3.8772]
[1759430846506,3.1361365,232.02,231.99,3.8772]
[1759430846708,3.1361365,232.01,231.99,3.8772]
[1759430846908,7.09,232.03,231.99,3.8772]
[1759430847107,10.22609442,232.02,231.99,3.8772]
[1759430847306,3.13609442,232.01,231.99,3.8772]
[1759430847507,7.09,232.02,231.99,3.8772]
[1759430847708,3.13607393,232.01,231.99,3.8772]
[1759430847909,7.09,232.02,231.99,3.8772]
[1759430848206,3.13607393,232.01,231.99,3.8772]
[1759430848411,7.09,232.02,231.99,3.8772]
[1759430848710,3.13606749,232.01,231.99,3.8772]
[1759430848907,7.09,232.02,231.99,3.8772]
[1759430849208,3.13606749,232.01,231.99,3.8772]
[1759430849409,7.09,232.02,231.99,3.8772]
[1759430849609,3.13604483,232.01,231.99,3.8772]
[1759430849811,7.09,232.02,231.99,3.8772]
[1759430850010,3.13604483,232.01,231.99,3.8772]
[1759430850212,7.09,232.02,231.99,3.8772]
[1759430850411,3.13596378,232.01,231.99,3.8772]
[1759430850716,7.09,232.02,231.99,3.8772]
[1759430851016,3.1360056,232.01,231.99,11.6072]
[1759430851210,7.09,232.05,231.99,7.73]
[1759430851512,7.52,232.03,231.97,3.8777]
[1759430851715,7.52,232.01,231.97,3.8777]
[1759430851914,7.52,232.04,231.97,3.8777]
[1759430852210,3.1360528,232.03,231.97,3.8777]
[1759430852514,3.1360528,232.02,231.95,11.188]
[1759430852712,10.6560528,232.01,231.95,11.188]
[1759430852909,3.1360528,232.0,231.95,3.878]
[1759430853210,3.1360528,231.99,231.95,3.878]
[1759430853414,7.52,232.02,231.96,7.31]
[1759430853708,10.65622852,232.01,231.96,11.1877]
[1759430853914,10.65622852,232.0,231.96,11.1877]
[1759430854113,3.13622852,231.99,231.96,11.1877]
[1759430854414,7.52,232.0,231.96,11.1877]
[1759430854616,10.65621356,231.99,231.96,11.1877]
[1759430854811,7.52,231.99,231.96,11.1877]
[1759430855315,7.52,232.04,231.96,11.1877]
[1759430855512,3.13623361,232.03,231.96,11.1877]